[Event "28th North American Open"]
[Site "Las Vegas"]
[Date "2018.12.30"]
[Round "9"]
[White "Andersen, Gunnar"]
[Black "Chua, Alexander"]
[Result "0-1"]
[ECO "B51"]
[WhiteElo "2194"]
[BlackElo "2291"]
[PlyCount "114"]
[EventDate "2018.12.??"]
[EventType "swiss"]
[EventRounds "9"]
[EventCountry "USA"]
[TimeControl "6600+10"]
[WhiteClock "0:50:52"]
[BlackClock "0:17:42"]

1. e4 {[%emt 0:19:40]} c5 2. Nf3 {[%emt 0:00:00]} d6 {[%emt 0:20:04]} 3. Bb5+ {
[%emt 0:00:00]} Nd7 {[%emt 0:00:00]} 4. d4 {[%emt 0:00:00]} cxd4 {[%emt 0:00:
00]} 5. Qxd4 {[%emt 0:00:00]} a6 {[%emt 0:00:46]} 6. Bxd7+ {[%emt 0:00:00]}
Bxd7 {[%emt 0:00:00]} 7. O-O {[%emt 0:00:00]} e5 {[%emt 0:02:21]} 8. Qd3 {
[%emt 0:00:00]} h6 {[%emt 0:02:35]} 9. Nc3 {[%emt 0:01:52]} Nf6 {[%emt 0:00:00]
} 10. Re1 {[%emt 0:00:08]} Be7 {[%emt 0:00:00]} 11. Nd2 {[%emt 0:00:52]} O-O {
[%emt 0:01:28]} 12. Nc4 {[%emt 0:00:18]} Be6 {[%emt 0:00:00]} 13. Be3 {[%emt 0:
05:48]} Bxc4 {[%emt 0:03:46]} 14. Qxc4 {[%emt 0:00:00]} Rc8 {[%emt 0:00:00]}
15. Qd3 {[%emt 0:00:00]} b5 {[%emt 0:00:33]} 16. Rad1 {[%emt 0:00:04]} Qa5 {
[%emt 0:05:00]} 17. a3 {[%emt 0:01:15]} Rc4 {[%emt 0:01:24]} 18. Bd2 {[%emt 0:
03:23]} Qc7 {[%emt 0:00:07]} 19. Re3 {[%emt 0:06:27]} Rd4 {[%emt 0:03:05]} 20.
Qe2 {[%emt 0:00:00]} Qb7 {[%emt 0:00:27]} 21. Re1 {[%emt 0:00:30]} Rc8 {
[%emt 0:00:38]} 22. Rg3 {[%emt 0:01:13]} Kf8 {[%emt 0:00:07]} 23. Be3 {[%emt 0:
03:19]} Rdc4 {[%emt 0:04:10]} 24. Bc1 {[%emt 0:06:26]} a5 {[%emt 0:01:54]} 25.
Qf3 {[%emt 0:06:18]} b4 {[%emt 0:03:03]} 26. axb4 {[%emt 0:00:00]} axb4 {
[%emt 0:00:00]} 27. Nd5 {[%emt 0:00:00]} Nxd5 {[%emt 0:01:44]} 28. exd5 {
[%emt 0:00:00]} Rxc2 {[%emt 0:16:56]} 29. Be3 {[%emt 0:00:00]} Qd7 {[%emt 0:01:
58]} 30. Qh5 {[%emt 0:02:04]} Bf6 {[%emt 0:00:29]} 31. Bxh6 {[%emt 0:00:15]}
Rxb2 {[%emt 0:12:50]} 32. Bxg7+ {[%emt 0:00:53]} Bxg7 {[%emt 0:00:02]} 33. Qh7
{[%emt 0:00:00]} f6 {[%emt 0:04:41]} 34. h4 {[%emt 0:00:00]} Rc3 {[%emt 0:03:
59]} 35. Ra1 {[%emt 0:02:37]} Rbc2 {[%emt 0:01:33]} 36. Ra8+ {[%emt 0:01:12]}
Rc8 {[%emt 0:00:00]} 37. Rxc8+ {[%emt 0:00:16]} Rxc8 {[%emt 0:00:00]} 38. h5 {
[%emt 0:00:00]} Rc1+ {[%emt 0:00:00]} 39. Kh2 {[%emt 0:00:00]} Rc4 {[%emt 0:00:
00]} 40. h6 {[%emt 0:03:52]} Rh4+ {[%emt 0:00:00]} 41. Rh3 {[%emt 0:00:00]}
Rxh3+ {[%emt 0:01:02]} 42. gxh3 {[%emt 0:00:00]} Qf7 {[%emt 0:00:35]} 43. hxg7+
{[%emt 0:00:00]} Qxg7 {[%emt 0:00:00]} 44. Qe4 {[%emt 0:00:00]} Qb7 {[%emt 0:
00:35]} 45. Qh4 {[%emt 0:00:00]} Qxd5 {[%emt 0:00:04]} 46. Qxf6+ {[%emt 0:00:
00]} Ke8 {[%emt 0:00:00]} 47. Qg6+ {[%emt 0:00:00]} Qf7 {[%emt 0:00:02]} 48.
Qxd6 {[%emt 0:00:00]} Qxf2+ {[%emt 0:00:00]} 49. Kh1 {[%emt 0:00:00]} Qd4 {
[%emt 0:00:38]} 50. Qc6+ {[%emt 0:00:00]} Ke7 {[%emt 0:00:00]} 51. Qb7+ {
[%emt 0:00:00]} Kd6 {[%emt 0:00:00]} 52. Qb8+ {[%emt 0:00:00]} Kc5 {[%emt 0:00:
19]} 53. Qc7+ {[%emt 0:00:00]} Kb5 {[%emt 0:00:48]} 54. Qb8+ {[%emt 0:00:00]}
Kc4 {[%emt 0:00:00]} 55. Qc8+ {[%emt 0:00:00]} Kd3 {[%emt 0:01:24]} 56. Qa6+ {
[%emt 0:00:00]} Ke3 {[%emt 0:01:02]} 57. Qa2 {[%emt 0:00:00]} Qd1+ {[%emt 0:00:
00]} 0-1

[Event "28th North American Open"]
[Site "Las Vegas"]
[Date "2018.12.30"]
[Round "9"]
[White "Yang, Kevin"]
[Black "Kumar, Nikhil"]
[Result "1/2-1/2"]
[ECO "A05"]
[WhiteElo "2135"]
[BlackElo "2281"]
[PlyCount "93"]
[EventDate "2018.12.??"]
[EventType "swiss"]
[EventRounds "9"]
[EventCountry "USA"]
[TimeControl "6600+10"]
[WhiteClock "1:32:54"]
[BlackClock "0:03:56"]

1. Nf3 {[%emt 0:19:40]} Nf6 {[%emt 0:19:50]} 2. g3 {[%emt 0:00:00]} b6 {
[%emt 0:00:21]} 3. Bg2 {[%emt 0:00:38]} Bb7 {[%emt 0:00:00]} 4. d3 {[%emt 0:01:
14]} d5 {[%emt 0:00:59]} 5. O-O {[%emt 0:03:24]} e6 {[%emt 0:00:00]} 6. Nbd2 {
[%emt 0:00:00]} Be7 {[%emt 0:03:45]} 7. e4 {[%emt 0:00:00]} dxe4 {[%emt 0:08:
01]} 8. Ng5 {[%emt 0:00:00]} c5 {[%emt 0:00:00]} 9. Ndxe4 {[%emt 0:00:00]} Nxe4
{[%emt 0:11:44]} 10. Nxe4 {[%emt 0:00:00]} Nc6 {[%emt 0:00:00]} 11. Be3 {
[%emt 0:00:00]} Qc7 {[%emt 0:08:31]} 12. Qh5 {[%emt 0:00:00]} g6 {[%emt 0:21:
17]} 13. Qf3 {[%emt 0:00:00]} f5 {[%emt 0:09:58]} 14. Ng5 {[%emt 0:10:40]} Nd8
{[%emt 0:12:28]} 15. Qf4 {[%emt 0:00:00]} e5 {[%emt 0:08:05]} 16. Qa4+ {
[%emt 0:00:00]} Bc6 {[%emt 0:06:06]} 17. Bxc6+ {[%emt 0:00:00]} Qxc6 {[%emt 0:
00:00]} 18. Qxc6+ {[%emt 0:00:00]} Nxc6 {[%emt 0:00:00]} 19. Nf3 {[%emt 0:00:
00]} Bf6 {[%emt 0:00:00]} 20. c3 {[%emt 0:00:00]} O-O {[%emt 0:00:05]} 21. Kg2
{[%emt 0:00:00]} Rad8 {[%emt 0:01:56]} 22. Rad1 {[%emt 0:00:00]} Rd7 {[%emt 0:
00:00]} 23. Rd2 {[%emt 0:00:00]} Bg7 {[%emt 0:00:00]} 24. Rdd1 {[%emt 0:00:00]}
Rd6 {[%emt 0:00:00]} 25. Rfe1 {[%emt 0:00:00]} Rfd8 {[%emt 0:00:00]} 26. Bg5 {
[%emt 0:00:00]} R8d7 {[%emt 0:00:00]} 27. d4 {[%emt 0:00:00]} cxd4 {[%emt 0:00:
00]} 28. cxd4 {[%emt 0:00:00]} e4 {[%emt 0:00:00]} 29. Nd2 {[%emt 0:00:00]}
Rxd4 {[%emt 0:00:00]} 30. Rc1 {[%emt 0:00:00]} Ne5 {[%emt 0:00:00]} 31. Rc8+ {
[%emt 0:00:00]} Kf7 {[%emt 0:00:00]} 32. Re2 {[%emt 0:00:00]} Nd3 {[%emt 0:00:
00]} 33. b3 {[%emt 0:00:00]} R4d5 {[%emt 0:00:00]} 34. f3 {[%emt 0:00:00]}
exf3+ {[%emt 0:00:00]} 35. Nxf3 {[%emt 0:00:00]} Nc5 {[%emt 0:00:00]} 36. Bf4 {
[%emt 0:00:00]} h6 {[%emt 0:00:00]} 37. h4 {[%emt 0:00:00]} Ne4 {[%emt 0:00:00]
} 38. Rec2 {[%emt 0:00:00]} Rd3 {[%emt 0:01:15]} 39. R8c7 {[%emt 0:00:00]} Ke7
{[%emt 0:00:00]} 40. R7c6 {[%emt 0:00:00]} Kf7 {[%emt 0:00:00]} 41. b4 {
[%emt 0:00:00]} Rc3 {[%emt 0:00:00]} 42. R2xc3 {[%emt 0:00:00]} Nxc3 {[%emt 0:
00:00]} 43. Bxh6 {[%emt 0:00:00]} Bf6 {[%emt 0:00:00]} 44. Bg5 {[%emt 0:00:00]}
Bg7 {[%emt 0:00:00]} 45. Bh6 {[%emt 0:00:00]} Bf6 {[%emt 0:00:00]} 46. Bg5 {
[%emt 0:00:00]} Bg7 {[%emt 0:00:00]} 47. Bh6 {[%emt 0:00:00]} 1/2-1/2

[Event "28th North American Open"]
[Site "Las Vegas"]
[Date "2018.12.30"]
[Round "9"]
[White "Wu, Rochelle"]
[Black "Vivekananthan, Anish"]
[Result "1/2-1/2"]
[ECO "E34"]
[WhiteElo "2096"]
[BlackElo "2294"]
[PlyCount "21"]
[EventDate "2018.12.??"]
[EventType "swiss"]
[EventRounds "9"]
[EventCountry "USA"]
[TimeControl "6600+10"]
[WhiteClock "1:08:49"]
[BlackClock "0:26:51"]

1. d4 {[%emt 0:19:40]} Nf6 {[%emt 0:20:08]} 2. c4 {[%emt 0:00:03]} e6 {[%emt 0:
00:00]} 3. Nc3 {[%emt 0:00:44]} Bb4 {[%emt 0:00:00]} 4. Qc2 {[%emt 0:00:00]} d5
{[%emt 0:00:00]} 5. cxd5 {[%emt 0:00:07]} Qxd5 {[%emt 0:00:15]} 6. Nf3 {
[%emt 0:00:13]} Nc6 {[%emt 0:06:38]} 7. e3 {[%emt 0:06:37]} O-O {[%emt 0:00:34]
} 8. Bd2 {[%emt 0:01:15]} Qd8 {[%emt 0:06:15]} 9. Bd3 {[%emt 0:02:25]} Bd6 {
[%emt 0:18:33]} 10. a3 {[%emt 0:05:58]} Qe7 {[%emt 0:32:36]} 11. Ne4 {[%emt 0:
05:59]} 1/2-1/2

[Event "28th North American Open"]
[Site "Las Vegas"]
[Date "2018.12.30"]
[Round "9"]
[White "Lynch, Joshua"]
[Black "Nyamdorj, Davaaochir"]
[Result "1-0"]
[ECO "B00"]
[WhiteElo "2267"]
[BlackElo "2111"]
[PlyCount "99"]
[EventDate "2018.12.??"]
[EventType "swiss"]
[EventRounds "9"]
[EventCountry "USA"]
[TimeControl "6600+10"]
[WhiteClock "0:02:51"]
[BlackClock "0:05:11"]

1. e4 {[%emt 0:19:40]} b6 2. d4 {[%emt 0:00:00]} Bb7 {[%emt 0:20:06]} 3. Nc3 {
[%emt 0:00:11]} e6 {[%emt 0:00:00]} 4. Bd3 {[%emt 0:02:32]} Nf6 {[%emt 0:00:08]
} 5. Bg5 {[%emt 0:01:15]} h6 {[%emt 0:00:39]} 6. Bh4 {[%emt 0:00:52]} Bb4 {
[%emt 0:00:28]} 7. Qe2 {[%emt 0:00:38]} Nc6 {[%emt 0:04:40]} 8. Nf3 {[%emt 0:
13:37]} g5 {[%emt 0:04:10]} 9. d5 {[%emt 0:02:15]} Ne7 {[%emt 0:06:21]} 10. Bg3
{[%emt 0:04:05]} Ng6 {[%emt 0:02:38]} 11. dxe6 {[%emt 0:06:14]} dxe6 {[%emt 0:
01:09]} 12. O-O-O {[%emt 0:02:35]} Qe7 {[%emt 0:02:02]} 13. Nb1 {[%emt 0:11:28]
} e5 {[%emt 0:03:06]} 14. Nbd2 {[%emt 0:03:04]} Nh5 {[%emt 0:18:14]} 15. Nc4 {
[%emt 0:05:52]} Nhf4 {[%emt 0:00:33]} 16. Bxf4 {[%emt 0:00:00]} gxf4 {[%emt 0:
00:00]} 17. g4 {[%emt 0:11:27]} h5 {[%emt 0:24:54]} 18. gxh5 {[%emt 0:06:46]}
Rxh5 {[%emt 0:00:17]} 19. Rdg1 {[%emt 0:06:20]} O-O-O {[%emt 0:04:42]} 20. Nd4
{[%emt 0:02:21]} Rdh8 {[%emt 0:00:55]} 21. Nf5 {[%emt 0:00:04]} Qf6 {[%emt 0:
00:32]} 22. f3 {[%emt 0:01:25]} Bc5 {[%emt 0:01:58]} 23. Rg4 {[%emt 0:00:53]}
Rh3 {[%emt 0:00:44]} 24. Nd2 {[%emt 0:01:55]} R8h5 {[%emt 0:02:29]} 25. Nb3 {
[%emt 0:01:19]} Bf8 {[%emt 0:04:20]} 26. Ba6 {[%emt 0:01:49]} Qc6 {[%emt 0:02:
34]} 27. Rg2 {[%emt 0:01:40]} Rh8 {[%emt 0:05:32]} 28. Rd1 {[%emt 0:00:38]} Bc5
{[%emt 0:00:44]} 29. Bb5 {[%emt 0:01:28]} Qf6 {[%emt 0:00:00]} 30. Nxc5 {
[%emt 0:00:00]} bxc5 {[%emt 0:00:00]} 31. Qd2 {[%emt 0:01:59]} Rxf3 {[%emt 0:
00:24]} 32. Qd7+ {[%emt 0:00:00]} Kb8 {[%emt 0:00:00]} 33. Nh6 {[%emt 0:00:00]}
a6 {[%emt 0:00:00]} 34. Nxf7 {[%emt 0:00:00]} Rf8 {[%emt 0:00:00]} 35. Bc4 {
[%emt 0:00:00]} Bxe4 {[%emt 0:00:00]} 36. Nd8 {[%emt 0:00:00]} Rxd8 {[%emt 0:
00:00]} 37. Qxd8+ {[%emt 0:00:00]} Qxd8 {[%emt 0:00:00]} 38. Rxd8+ {[%emt 0:00:
00]} Kb7 {[%emt 0:00:00]} 39. Rxg6 {[%emt 0:00:00]} Rf2 {[%emt 0:00:00]} 40.
Bd5+ {[%emt 0:00:00]} Bxd5 {[%emt 0:00:00]} 41. Rxd5 {[%emt 0:00:00]} e4 {
[%emt 0:00:00]} 42. Kd1 {[%emt 0:00:00]} e3 {[%emt 0:00:00]} 43. Re5 {[%emt 0:
00:00]} Rd2+ {[%emt 0:01:19]} 44. Ke1 {[%emt 0:00:22]} Rxh2 {[%emt 0:00:56]}
45. Rf6 {[%emt 0:00:00]} Rh1+ {[%emt 0:00:00]} 46. Ke2 {[%emt 0:00:00]} Rh2+ {
[%emt 0:00:00]} 47. Kf1 {[%emt 0:00:36]} Rxc2 {[%emt 0:00:43]} 48. Rxf4 {
[%emt 0:00:00]} Rxb2 {[%emt 0:00:00]} 49. a4 {[%emt 0:00:00]} Kb6 {[%emt 0:00:
00]} 50. Rc4 {[%emt 0:00:09]} 1-0

[Event "28th North American Open"]
[Site "Las Vegas"]
[Date "2018.12.30"]
[Round "9"]
[White "Tanaka, Taira Tyler"]
[Black "Kollar, Romain"]
[Result "0-1"]
[ECO "B53"]
[WhiteElo "2011"]
[BlackElo "2180"]
[PlyCount "140"]
[EventDate "2018.12.??"]
[EventType "swiss"]
[EventRounds "9"]
[EventCountry "USA"]
[TimeControl "6600+10"]
[WhiteClock "0:05:13"]
[BlackClock "0:04:33"]

1. e4 {[%emt 0:19:40]} c5 {[%emt 0:19:56]} 2. Nf3 {[%emt 0:00:00]} d6 {[%emt 0:
00:00]} 3. d4 {[%emt 0:00:00]} cxd4 {[%emt 0:00:00]} 4. Qxd4 {[%emt 0:00:00]}
a6 {[%emt 0:00:00]} 5. h3 {[%emt 0:00:00]} Nc6 {[%emt 0:00:00]} 6. Qe3 {
[%emt 0:00:00]} g6 {[%emt 0:00:00]} 7. c4 {[%emt 0:00:00]} Bg7 {[%emt 0:01:55]}
8. Nc3 {[%emt 0:00:00]} Nf6 {[%emt 0:01:22]} 9. Be2 {[%emt 0:00:00]} O-O {
[%emt 0:00:00]} 10. O-O {[%emt 0:00:00]} a5 {[%emt 0:02:35]} 11. Rb1 {[%emt 0:
00:04]} a4 {[%emt 0:02:40]} 12. Rd1 {[%emt 0:12:48]} Nd7 {[%emt 0:17:08]} 13.
b4 {[%emt 0:04:32]} axb3 {[%emt 0:04:53]} 14. axb3 {[%emt 0:03:16]} Qa5 {
[%emt 0:01:29]} 15. Bd2 {[%emt 0:12:23]} Qc5 {[%emt 0:01:00]} 16. Nd5 {[%emt 0:
14:00]} Ra2 {[%emt 0:19:35]} 17. Bf1 {[%emt 0:04:22]} e6 {[%emt 0:22:31]} 18.
Nf4 {[%emt 0:09:05]} Nd4 {[%emt 0:01:19]} 19. b4 {[%emt 0:17:19]} Qa7 {[%emt 0:
03:11]} 20. Bc1 {[%emt 0:04:17]} Nxf3+ {[%emt 0:09:18]} 21. Qxf3 {[%emt 0:00:
39]} Ne5 {[%emt 0:00:00]} 22. Qe3 {[%emt 0:01:22]} Qa4 {[%emt 0:00:00]} 23. Rd2
{[%emt 0:08:35]} Rc2 {[%emt 0:03:05]} 24. Rxc2 {[%emt 0:00:00]} Qxc2 {[%emt 0:
00:00]} 25. Bd3 {[%emt 0:00:00]} Qd1+ {[%emt 0:01:08]} 26. Bf1 {[%emt 0:00:00]}
Nxc4 {[%emt 0:00:39]} 27. Qd3 {[%emt 0:00:00]} Qxd3 {[%emt 0:00:23]} 28. Bxd3 {
[%emt 0:00:00]} b5 {[%emt 0:00:00]} 29. Ne2 {[%emt 0:00:00]} Bb7 {[%emt 0:00:
15]} 30. Bf4 {[%emt 0:00:00]} d5 {[%emt 0:00:02]} 31. exd5 {[%emt 0:00:00]}
exd5 {[%emt 0:00:14]} 32. Rd1 {[%emt 0:00:00]} Ra8 {[%emt 0:00:00]} 33. Nc1 {
[%emt 0:00:00]} Bc3 {[%emt 0:00:00]} 34. Ne2 {[%emt 0:00:00]} Bf6 {[%emt 0:00:
36]} 35. Nc1 {[%emt 0:00:00]} g5 {[%emt 0:00:14]} 36. Bxc4 {[%emt 0:00:25]}
bxc4 {[%emt 0:00:10]} 37. Be3 {[%emt 0:00:00]} Ra1 {[%emt 0:00:04]} 38. b5 {
[%emt 0:00:07]} d4 {[%emt 0:00:06]} 39. Bxd4 {[%emt 0:00:09]} Bxd4 {[%emt 0:00:
00]} 40. Rxd4 {[%emt 0:00:00]} Rxc1+ {[%emt 0:00:00]} 41. Kh2 {[%emt 0:02:24]}
c3 {[%emt 0:00:00]} 42. b6 {[%emt 0:00:48]} c2 {[%emt 0:00:00]} 43. Rc4 {
[%emt 0:00:00]} Be4 {[%emt 0:00:00]} 44. Rxe4 {[%emt 0:00:04]} Rh1+ {[%emt 0:
00:00]} 45. Kxh1 {[%emt 0:00:00]} c1=Q+ {[%emt 0:00:00]} 46. Kh2 {[%emt 0:00:
00]} Qc6 {[%emt 0:00:00]} 47. Rg4 {[%emt 0:00:00]} h6 {[%emt 0:01:20]} 48. Rg3
{[%emt 0:00:00]} Qxb6 {[%emt 0:00:20]} 49. Rf3 {[%emt 0:00:00]} Kg7 {[%emt 0:
00:02]} 50. g4 {[%emt 0:00:49]} Qd6+ {[%emt 0:00:01]} 51. Kg2 {[%emt 0:00:12]}
Qd5 {[%emt 0:00:00]} 52. Kg3 {[%emt 0:00:00]} Qe5+ {[%emt 0:00:07]} 53. Kg2 {
[%emt 0:00:00]} Qe4 {[%emt 0:00:00]} 54. Kg3 {[%emt 0:00:00]} Kg6 {[%emt 0:00:
00]} 55. Rf5 {[%emt 0:00:00]} Qxf5 {[%emt 0:00:42]} 56. gxf5+ {[%emt 0:00:00]}
Kxf5 {[%emt 0:00:00]} 57. Kf3 {[%emt 0:00:00]} h5 {[%emt 0:00:34]} 58. Kg3 {
[%emt 0:00:16]} Ke4 {[%emt 0:00:00]} 59. Kg2 {[%emt 0:01:32]} Kf4 {[%emt 0:00:
00]} 60. Kh2 {[%emt 0:00:00]} Kf3 {[%emt 0:00:00]} 61. Kg1 {[%emt 0:00:00]} h4
{[%emt 0:00:00]} 62. Kf1 {[%emt 0:00:00]} f5 {[%emt 0:00:00]} 63. Kg1 {[%emt 0:
00:00]} Ke2 {[%emt 0:00:00]} 64. Kg2 {[%emt 0:00:00]} f4 {[%emt 0:00:00]} 65.
f3 {[%emt 0:00:00]} Ke3 {[%emt 0:00:00]} 66. Kg1 {[%emt 0:00:00]} Kxf3 {
[%emt 0:00:00]} 67. Kh2 {[%emt 0:00:00]} Ke2 {[%emt 0:00:00]} 68. Kg2 {[%emt 0:
00:00]} f3+ {[%emt 0:00:00]} 69. Kg1 {[%emt 0:00:00]} f2+ {[%emt 0:00:00]} 70.
Kh2 {[%emt 0:00:00]} Kf3 {[%emt 0:00:00]} 0-1

[Event "28th North American Open"]
[Site "Las Vegas"]
[Date "2018.12.30"]
[Round "9"]
[White "Encinas Varela, David"]
[Black "Ramirez Madrid, Gerardo Alfonso"]
[Result "1/2-1/2"]
[ECO "C02"]
[WhiteElo "1885"]
[BlackElo "1977"]
[PlyCount "115"]
[EventDate "2018.12.??"]
[EventType "swiss"]
[EventRounds "9"]
[EventCountry "USA"]
[TimeControl "6600+10"]
[WhiteClock "0:28:21"]
[BlackClock "0:03:46"]

1. e4 {[%emt 0:19:40]} e6 2. d4 {[%emt 0:00:00]} d5 {[%emt 0:20:00]} 3. e5 {
[%emt 0:00:00]} c5 {[%emt 0:00:00]} 4. c3 {[%emt 0:00:00]} Nc6 {[%emt 0:00:00]}
5. Nf3 {[%emt 0:00:00]} Bd7 {[%emt 0:00:00]} 6. Bd3 {[%emt 0:00:00]} cxd4 {
[%emt 0:00:00]} 7. cxd4 {[%emt 0:00:00]} Qb6 {[%emt 0:00:00]} 8. Bc2 {[%emt 0:
00:00]} Nb4 {[%emt 0:01:19]} 9. O-O {[%emt 0:00:00]} Nxc2 {[%emt 0:02:19]} 10.
Qxc2 {[%emt 0:00:00]} Rc8 {[%emt 0:01:13]} 11. Nc3 {[%emt 0:00:00]} Ne7 {
[%emt 0:03:30]} 12. Be3 {[%emt 0:00:00]} Nc6 {[%emt 0:00:57]} 13. Rfc1 {
[%emt 0:00:00]} Be7 {[%emt 0:03:33]} 14. a3 {[%emt 0:02:19]} Na5 {[%emt 0:03:
43]} 15. Nd2 {[%emt 0:10:50]} O-O {[%emt 0:01:00]} 16. b3 {[%emt 0:01:00]} Rc7
{[%emt 0:06:27]} 17. Qb2 {[%emt 0:11:28]} Rfc8 {[%emt 0:04:21]} 18. Na2 {
[%emt 0:00:44]} Nc4 {[%emt 0:17:38]} 19. Nxc4 {[%emt 0:01:16]} dxc4 {[%emt 0:
09:11]} 20. b4 {[%emt 0:02:00]} a5 {[%emt 0:01:30]} 21. d5 {[%emt 0:00:00]} Bc5
{[%emt 0:00:26]} 22. Qc3 {[%emt 0:10:05]} Bxe3 {[%emt 0:01:24]} 23. fxe3 {
[%emt 0:00:00]} exd5 {[%emt 0:00:00]} 24. bxa5 {[%emt 0:00:00]} Qa7 {[%emt 0:
00:54]} 25. Rd1 {[%emt 0:01:52]} Rc5 {[%emt 0:03:07]} 26. Nb4 {[%emt 0:00:00]}
Be6 {[%emt 0:13:39]} 27. a6 {[%emt 0:00:00]} bxa6 {[%emt 0:03:35]} 28. Qd4 {
[%emt 0:01:25]} Qb7 {[%emt 0:06:05]} 29. e4 {[%emt 0:02:42]} a5 {[%emt 0:05:32]
} 30. Nxd5 {[%emt 0:00:00]} Kf8 {[%emt 0:00:00]} 31. Rab1 {[%emt 0:01:07]} Rb5
{[%emt 0:00:00]} 32. Rxb5 {[%emt 0:07:24]} Qxb5 {[%emt 0:00:00]} 33. Nc7 {
[%emt 0:00:00]} Qb8 {[%emt 0:03:07]} 34. Qd6+ {[%emt 0:00:30]} Kg8 {[%emt 0:00:
00]} 35. Nxe6 {[%emt 0:00:00]} fxe6 {[%emt 0:00:00]} 36. Qxe6+ {[%emt 0:00:00]}
Kh8 {[%emt 0:00:00]} 37. Qd6 {[%emt 0:01:19]} c3 {[%emt 0:01:09]} 38. Qxb8 {
[%emt 0:04:48]} Rxb8 {[%emt 0:00:00]} 39. Rc1 {[%emt 0:00:00]} Rb3 {[%emt 0:00:
00]} 40. Kf2 {[%emt 0:02:54]} Kg8 {[%emt 0:00:00]} 41. a4 {[%emt 0:04:55]} Kf7
{[%emt 0:00:00]} 42. Ke3 {[%emt 0:00:00]} Ke6 {[%emt 0:00:00]} 43. Kd3 {
[%emt 0:02:24]} c2+ {[%emt 0:00:00]} 44. Kxc2 {[%emt 0:04:54]} Ra3 {[%emt 0:00:
18]} 45. Kb2 {[%emt 0:00:00]} Rxa4 {[%emt 0:00:00]} 46. Rc7 {[%emt 0:00:00]} g5
{[%emt 0:01:02]} 47. Rg7 {[%emt 0:00:00]} Rxe4 {[%emt 0:00:00]} 48. Rxg5 {
[%emt 0:00:00]} Rxe5 {[%emt 0:00:00]} 49. Rg7 {[%emt 0:00:00]} Rh5 {[%emt 0:00:
00]} 50. h3 {[%emt 0:00:00]} Kf6 {[%emt 0:00:00]} 51. Ra7 {[%emt 0:00:00]} Rb5+
{[%emt 0:00:00]} 52. Kc3 {[%emt 0:00:00]} Kg6 {[%emt 0:00:00]} 53. Kd4 {
[%emt 0:00:00]} Rb4+ {[%emt 0:00:13]} 54. Ke3 {[%emt 0:00:00]} Ra4 {[%emt 0:00:
00]} 55. Kf3 {[%emt 0:00:00]} Ra3+ {[%emt 0:00:00]} 56. Kf4 {[%emt 0:00:00]}
Ra4+ {[%emt 0:00:00]} 57. Kf3 {[%emt 0:00:00]} Ra1 {[%emt 0:00:00]} 58. Kf4 {
[%emt 0:00:00]} 1/2-1/2